fUSD/lending_fUSD_20240519
["ID","MTS","AMOUNT","RATE_DAILY","PERIOD"]
[327458538,1716079887579,-500.0,0.00029863,2]
[327458539,1716079887590,-483.30132685,0.00029863,2]
[327458540,1716079887600,-500.0,0.00029863,2]
[327458541,1716079887610,-278.642658,0.00029863,7]
[327458542,1716079887619,-801.03,0.00029863,2]
[327458543,1716079887629,-558.63,0.00029863,2]
[327458544,1716079887639,-799.77,0.00029863,2]
[327458545,1716079887649,-591.98,0.00029863,2]
[327458546,1716079887658,-892.31,0.00029863,2]
[327458547,1716079887667,-464.916911,0.00029863,7]
[327458548,1716079887676,-500.0,0.00029863,2]
[327458549,1716079887686,-464.916911,0.00029863,7]
[327458550,1716079887696,-655.12,0.00029863,2]
[327458551,1716079887707,-616.57,0.00029863,2]
[327458552,1716079887716,-517.62,0.00029863,2]
[327458553,1716079887741,-500.0,0.00029863,2]
[327458554,1716079887752,-500.0,0.00029863,2]
[327458555,1716079887762,-500.0,0.00029863,2]
[327458556,1716079887772,-602.52,0.00029863,2]
[327458557,1716079887783,-1082.875413,0.00029863,7]
[327458558,1716079887793,-500.0,0.00029863,2]
[327458559,1716079887803,-500.0,0.00029863,2]
[327458560,1716079887813,-840.77,0.00029863,2]
[327458561,1716079887822,-1082.875413,0.00029863,7]
[327458562,1716079887832,-500.0,0.00029863,2]
[327458563,1716079887842,-608.64,0.00029863,2]
[327458564,1716079887854,-536.02,0.00029863,2]
[327458565,1716079887865,-1106.38,0.00029863,2]
[327458566,1716079887875,-500.0,0.00029863,2]
[327458567,1716079887884,-404.29174297,0.00029863,2]
[327458568,1716079887894,-500.0,0.00029863,2]
[327458569,1716079887904,-500.0,0.00029863,2]
[327458570,1716079887914,-500.0,0.00029863,2]
[327458571,1716079887923,-957.21,0.00029863,2]
[327458572,1716079887933,-1257.0,0.00029863,2]
[327458573,1716079887945,-500.0,0.00029863,2]
[327458574,1716079887954,-1352.16,0.00029863,2]
[327458575,1716079887964,-500.0,0.00029863,2]
[327458576,1716079887974,-684.6,0.00029863,2]
[327458577,1716079887984,-1072.66,0.00029863,2]
[327458578,1716079887994,-849.73,0.00029863,2]
[327458579,1716079888004,-500.0,0.00029863,2]
[327458580,1716079888014,-874.66,0.00029863,2]
[327458581,1716079888023,-585.08,0.00029863,2]
[327458582,1716079888034,-151.0,0.00029863,7]
[327458583,1716079888044,-1990.29,0.00029863,2]
[327458584,1716079888054,-545.44,0.00029863,2]
[327458585,1716079888064,-1243.99,0.00029863,2]
[327458586,1716079888074,-500.0,0.00029863,2]
[327458587,1716079888083,-750.45,0.00029863,2]
[327458588,1716079888093,-748.72,0.00029863,2]
[327458589,1716079888103,-1292.43,0.00029863,2]
[327458590,1716079888112,-151.0,0.00029863,7]
[327458591,1716079888122,-500.0,0.00029863,2]
[327458592,1716079888132,-846.9,0.00029863,2]
[327458593,1716079888142,-461.53947672,0.00029863,2]
[327458594,1716079888152,-1250.19,0.00029863,2]
[327458595,1716079888162,-1463.37,0.00029863,2]
[327458596,1716079888172,-500.0,0.00029863,2]
[327458597,1716079888182,-151.0,0.00029863,7]
[327458598,1716079888191,-530.63,0.00029863,2]
[327458599,1716079888201,-500.0,0.00029863,2]
[327458600,1716079888210,-843.77,0.00029863,2]
[327458601,1716079888219,-1072.07,0.00029863,2]
[327458602,1716079888229,-500.0,0.00029863,2]
[327458603,1716079888239,-896.67,0.00029863,2]
[327458604,1716079888248,-500.0,0.00029863,2]
[327458605,1716079888258,-319.688279,0.00029863,7]
[327458606,1716079888268,-733.96,0.00029863,2]
[327458607,1716079888277,-1493.69,0.00029863,2]
[327458608,1716079888287,-319.688279,0.00029863,7]
[327458609,1716079888297,-996.4,0.00029863,2]
[327458610,1716079888306,-500.0,0.00029863,2]
[327458611,1716079888316,-500.0,0.00029863,2]
[327458612,1716079888326,-500.0,0.00029863,2]
[327458613,1716079888335,-1067.83,0.00029863,2]
[327458614,1716079888345,-717.91,0.00029863,2]
[327458615,1716079888355,-464.916368,0.00029863,7]
[327458616,1716079888365,-671.98,0.00029863,2]
[327458617,1716079888375,-464.916368,0.00029863,7]
[327458618,1716079888384,-414.26,0.00029863,2]
[327458619,1716079888393,-500.0,0.00029863,2]
[327458620,1716079888403,-637.51,0.00029863,2]
[327458621,1716079888412,-151.0,0.00029863,7]
[327458622,1716079888422,-709.05,0.00029863,2]
[327458623,1716079888431,-1264.55,0.00029863,2]
[327458624,1716079888442,-500.0,0.00029863,2]
[327458625,1716079888451,-753.77,0.00029863,2]
[327458626,1716079888461,-500.0,0.00029863,2]
[327458627,1716079888471,-1101.63,0.00029863,2]
[327458628,1716079888480,-500.0,0.00029863,2]
[327458629,1716079888489,-1105.23,0.00029863,2]
[327458630,1716079888499,-516.07,0.00029863,2]
[327458631,1716079888509,-500.0,0.00029863,2]
[327458632,1716079888518,-1016.72,0.00029863,2]
[327458633,1716079888529,-500.0,0.00029863,2]
[327458634,1716079888539,-1552.71,0.00029863,2]
[327458635,1716079888548,-1614.27,0.00029863,2]
[327458636,1716079888557,-151.0,0.00029863,7]
[327458637,1716079888566,-822.34,0.00029863,2]
[327458638,1716079888576,-511.0728349,0.00029863,2]
[327458639,1716079888586,-745.19,0.00029863,2]
[327458640,1716079888596,-861.8,0.00029863,2]
[327458641,1716079888606,-500.0,0.00029863,2]
[327458642,1716079888616,-500.0,0.00029863,2]
[327458643,1716079888625,-500.0,0.00029863,2]
[327458644,1716079888635,-867.38,0.00029863,2]
[327458645,1716079888645,-790.2,0.00029863,2]
[327458646,1716079888654,-908.09,0.00029863,2]
[327458647,1716079888664,-500.0,0.00029863,2]
[327458648,1716079888674,-2847.34,0.00029863,2]
[327458649,1716079888684,-500.0,0.00029863,2]
[327458650,1716079888694,-500.0,0.00029863,2]
[327458651,1716079888703,-500.0,0.00029863,2]
[327458652,1716079888713,-643.73576216,0.00029863,2]
[327458653,1716079888723,-879.34,0.00029863,2]
[327458654,1716079888733,-500.0,0.00029863,2]
[327458655,1716079888743,-1800.44,0.00029863,2]
[327458656,1716079888752,-751.88,0.00029863,2]
[327458657,1716079888762,-500.0,0.00029863,2]
[327458658,1716079888771,-690.03,0.00029863,2]
[327458659,1716079888784,-1239.57,0.00029863,2]
[327458660,1716079888793,-694.45,0.00029863,2]
[327458661,1716079888803,-2119.09,0.00029863,2]
[327458662,1716079888812,-500.0,0.00029863,2]
[327458663,1716079888821,-500.0,0.00029863,2]
[327458664,1716079888831,-500.0,0.00029863,2]
[327458665,1716079888841,-2258.52,0.00029863,2]
[327458666,1716079888852,-582.13,0.00029863,2]
[327458667,1716079888866,-663.78,0.00029863,2]
[327458668,1716079888877,-592.94,0.00029863,2]
[327458669,1716079888886,-663.37,0.00029863,2]
[327458670,1716079888896,-596.02,0.00029863,2]
[327458671,1716079888907,-2187.67,0.00029863,2]
[327458672,1716079888916,-252.86873,0.00029863,7]
[327458673,1716079888926,-500.0,0.00029863,2]
[327458674,1716079888936,-500.0,0.00029863,2]
[327458675,1716079888947,-897.21,0.00029863,2]
[327458676,1716079888958,-151.0,0.00029863,7]
[327458677,1716079888969,-500.0,0.00029863,2]
[327458678,1716079888978,-1986.87,0.00029863,2]
[327458679,1716079888989,-567.98,0.00029863,2]
[327458680,1716079889000,-643.54,0.00029863,2]
[327458681,1716079889010,-252.86873,0.00029863,7]
[327458682,1716079889019,-649.98,0.00029863,2]
[327458683,1716079889032,-2292.47,0.00029863,2]
[327458684,1716079889042,-2459.44,0.00029863,2]
[327458685,1716079889052,-151.0,0.00029863,7]
[327458686,1716079889062,-8969.82,0.00029863,2]
[327458687,1716079889072,-500.0,0.00029863,2]
[327458688,1716079889081,-702.64,0.00029863,2]
[327458689,1716079889090,-500.0,0.00029863,2]
[327458690,1716079889100,-1618.24,0.00029863,2]
[327458691,1716079889110,-2898.95,0.00029863,2]
[327458692,1716079889119,-500.0,0.00029863,2]
[327458693,1716079889130,-7341.3,0.00029863,2]
[327458694,1716079889139,-859.92,0.00029863,2]
[327458695,1716079889149,-597.52,0.00029863,2]
[327458696,1716079889159,-2396.63,0.00029863,2]
[327458697,1716079889169,-847.62,0.00029863,2]
[327458698,1716079889179,-676.53,0.00029863,2]
[327458699,1716079889189,-813.35,0.00029863,2]
[327458700,1716079889198,-1434.0,0.00029863,2]
[327458701,1716079889208,-230.740866,0.00029863,7]
[327458702,1716079889219,-9386.79,0.00029863,2]
[327458703,1716079889229,-500.0,0.00029863,2]
[327458704,1716079889238,-756.32,0.00029863,2]
[327458705,1716079889248,-30275.28,0.00029863,2]
[327458706,1716079889259,-4020.85,0.00029863,2]
[327458707,1716079889269,-1856.14,0.00029863,2]
[327458708,1716079889284,-762.31,0.00029863,2]
[327458709,1716079889293,-4821.09,0.00029863,2]
[327458710,1716079889303,-1175.05,0.00029863,2]
[327458711,1716079889313,-768.86,0.00029863,2]
[327458712,1716079889322,-325.92301943,0.00029863,2]
[327458713,1716079889332,-614.98,0.00029863,2]
[327458714,1716079889341,-500.0,0.00029863,2]
[327458715,1716079889351,-8593.12,0.00029863,2]
[327458716,1716079889360,-994.65,0.00029863,2]
[327458717,1716079889370,-616.67,0.00029863,2]
[327458718,1716079889380,-900.63,0.00029863,2]
[327458719,1716079889389,-4266.05,0.00029863,2]
[327458720,1716079889399,-966.41,0.00029863,2]
[327458721,1716079889408,-912.23,0.00029863,2]
[327458722,1716079889418,-500.0,0.00029863,2]
[327458723,1716079889427,-645.69,0.00029863,2]
[327458724,1716079889437,-1869.0,0.00029863,2]
[327458725,1716079889447,-6268.94,0.00029863,2]
[327458726,1716079889457,-971.87,0.00029863,2]
[327458727,1716079889467,-942.94,0.00029863,2]
[327458728,1716079889477,-541.88,0.00029863,2]
[327458729,1716079889487,-500.0,0.00029863,2]
[327458730,1716079889497,-973.68,0.00029863,2]
[327458731,1716079889507,-1701.01,0.00029863,2]
[327458732,1716079889517,-7483.61,0.00029863,2]
[327458733,1716079889529,-500.0,0.00029863,2]
[327458734,1716079889539,-1401.02,0.00029863,2]
[327458735,1716079889549,-676.79,0.00029863,2]
[327458736,1716079889558,-500.0,0.00029863,2]
[327458737,1716079889568,-537.08,0.00029863,2]
[327458738,1716079889578,-6981.65,0.00029863,2]
[327458739,1716079889587,-2717.83,0.00029863,2]
[327458740,1716079889597,-838.88,0.00029863,2]
[327458741,1716079889607,-502.76,0.00029863,2]
[327458742,1716079889615,-500.0,0.00029863,2]
[327458743,1716079889625,-2645.1,0.00029863,2]
[327458744,1716079889635,-500.0,0.00029863,2]
[327458745,1716079889645,-865.2,0.00029863,2]
[327458746,1716079889654,-1132.35,0.00029863,2]
[327458747,1716079889664,-812.15,0.00029863,2]
[327458748,1716079889673,-1556.62,0.00029863,2]
[327458749,1716079889683,-718.44,0.00029863,2]
[327458750,1716079889693,-1265.15,0.00029863,2]
[327458751,1716079889708,-14055.37,0.00029863,2]
[327458752,1716079889718,-2634.63,0.00029863,2]
[327458753,1716079889729,-15063.88,0.00029863,2]
[327458754,1716079889739,-2652.66,0.00029863,2]
[327458755,1716079889750,-742.79,0.00029863,2]
[327458756,1716079889760,-621.16,0.00029863,2]
[327458757,1716079889771,-794.5,0.00029863,2]
[327458758,1716079889784,-1250.69,0.00029863,2]
[327458759,1716079889795,-693.14,0.00029863,2]
[327458760,1716079889805,-889.38,0.00029863,2]
[327458761,1716079889815,-1988.34,0.00029863,2]
[327458762,1716079889826,-500.0,0.00029863,2]
[327458763,1716079889837,-1357.07,0.00029863,2]
[327458764,1716079889847,-998.68,0.00029863,2]
[327458765,1716079889861,-500.0,0.00029863,2]
[327458766,1716079889872,-5624.591496,0.00029863,7]
[327458767,1716079889882,-500.0,0.00029863,2]
[327458768,1716079889892,-500.0,0.00029863,2]
[327458769,1716079889903,-500.0,0.00029863,2]
[327458770,1716079889913,-601.38,0.00029863,2]
[327458771,1716079889923,-5624.591496,0.00029863,7]
[327458772,1716079889933,-894.0,0.00029863,2]
[327458773,1716079889943,-2431.12,0.00029863,2]
[327458774,1716079889953,-1539.56,0.00029863,2]
[327458775,1716079889963,-511.27,0.00029863,2]
[327458776,1716079889974,-500.0,0.00029863,2]
[327458777,1716079889983,-151.0,0.00029863,7]
[327458778,1716079890213,-1396.22,0.00029863,2]
[327458779,1716079890224,-500.0,0.00029863,2]
[327458780,1716079890233,-1300.21,0.00029863,2]
[327458781,1716079890242,-2267.23,0.00029863,2]
[327458782,1716079890252,-1327.72,0.00029863,2]
[327458783,1716079890262,-500.0,0.00029863,2]
[327458784,1716079890272,-500.0,0.00029863,2]
[327458785,1716079890283,-3187.9,0.00029863,2]
[327458786,1716079890293,-1229.67,0.00029863,2]
[327458787,1716079890302,-500.0,0.00029863,2]
[327458788,1716079890311,-1554.51,0.00029863,2]
[327458789,1716079890320,-500.0,0.00029863,2]
[327458790,1716079890329,-500.0,0.00029863,2]
[327458791,1716079890339,-902.06,0.00029863,2]
[327458792,1716079890348,-739.0,0.00029863,2]
[327458793,1716079890358,-744.32,0.00029863,2]
[327458794,1716079890367,-500.0,0.00029863,2]
[327458795,1716079890377,-549.5186095,0.00029863,2]
[327458796,1716079890386,-566.09,0.00029863,2]
[327458797,1716079890396,-296.308157,0.00029863,7]
[327458798,1716079890405,-2317.87,0.00029863,2]
[327458799,1716079890414,-1543.54,0.00029863,2]
[327458800,1716079890423,-500.0,0.00029863,2]
[327458801,1716079890433,-500.0,0.00029863,2]
[327458802,1716079890442,-500.0,0.00029863,2]
[327458803,1716079890452,-1576.46,0.00029863,2]
[327458804,1716079890462,-1727.73,0.00029863,2]
[327458805,1716079890471,-1192.7,0.00029863,2]
[327458806,1716079890481,-702.53,0.00029863,2]
[327458807,1716079890490,-224.26543724,0.00029863,2]
[327458808,1716079890499,-902.92,0.00029863,2]
[327458809,1716079890509,-500.0,0.00029863,2]
[327458810,1716079890518,-500.0,0.00029863,2]
[327458811,1716079890528,-750.17,0.00029863,2]
[327458812,1716079890538,-683.13,0.00029863,2]
[327458813,1716079890547,-1571.87,0.00029863,2]
[327458814,1716079890557,-1593.16,0.00029863,2]
[327458815,1716079890567,-1391.44,0.00029863,2]
[327458816,1716079890576,-734.3,0.00029863,2]
[327458817,1716079890585,-723.24,0.00029863,2]
[327458818,1716079890594,-765.2,0.00029863,2]
[327458819,1716079890604,-1006.36,0.00029863,2]
[327458820,1716079890613,-500.0,0.00029863,2]
[327458821,1716079890623,-1946.51,0.00029863,2]
[327458822,1716079890632,-500.0,0.00029863,2]
[327458823,1716079890644,-500.0,0.00029863,2]
[327458824,1716079890653,-737.65,0.00029863,2]
[327458825,1716079890663,-1321.13,0.00029863,2]
[327458826,1716079890672,-340.963945,0.00029863,7]
[327458827,1716079890682,-500.0,0.00029863,2]
[327458828,1716079890691,-976.72,0.00029863,2]
[327458829,1716079890701,-340.963945,0.00029863,7]
[327458830,1716079890711,-182.997182,0.00029863,7]
[327458831,1716079890720,-1844.47,0.00029863,2]
[327458832,1716079890730,-500.0,0.00029863,2]
[327458833,1716079890739,-500.0,0.00029863,2]
[327458834,1716079890748,-609.15,0.00029863,2]
[327458835,1716079890758,-892.71,0.00029863,2]
[327458836,1716079890768,-1337.56,0.00029863,2]
[327458837,1716079890780,-182.997182,0.00029863,7]
[327458838,1716079890789,-500.0,0.00029863,2]
[327458839,1716079890799,-713.62,0.00029863,2]
[327458840,1716079890808,-2601.94,0.00029863,2]
[327458841,1716079890818,-1338.29,0.00029863,2]
[327458842,1716079890828,-500.0,0.00029863,2]
[327458843,1716079890837,-877.48,0.00029863,2]
[327458844,1716079890847,-500.0,0.00029863,2]
[327458845,1716079890861,-955.29,0.00029863,2]
[327458846,1716079890870,-3753.72,0.00029863,2]
[327458847,1716079890879,-500.0,0.00029863,2]
[327458848,1716079890888,-3260.19,0.00029863,2]
[327458849,1716079890898,-217.52696429,0.00029863,2]
[327458850,1716079890908,-2742.03,0.00029863,2]
[327458851,1716079890917,-1111.7,0.00029863,2]
[327458852,1716079890927,-1864.26,0.00029863,2]
[327458853,1716079890939,-553.35885678,0.00029863,2]
[327458854,1716079890949,-500.0,0.00029863,2]
[327458855,1716079890958,-550.17,0.00029863,2]
[327458856,1716079890967,-577.21,0.00029863,2]
[327458857,1716079890976,-1512.87,0.00029863,2]
[327458858,1716079890985,-697.0,0.00029863,2]
[327458859,1716079890994,-568.56011102,0.00029863,2]
[327458860,1716079891004,-965.18,0.00029863,2]
[327458861,1716079891013,-679.17,0.00029863,2]
[327458862,1716079891023,-2533.85,0.00029863,2]
[327458863,1716079891035,-1281.95,0.00029863,2]
[327458864,1716079891044,-1081.87392664,0.00029972,2]
[327458865,1716079891054,-9441.79767087,0.0003,5]
[327458866,1716079891063,-155.0,0.0003,4]
[327458867,1716079891072,-150.0,0.00030027,2]
[327458868,1716079891082,-500.0,0.00030136,2]
[327458869,1716079891091,-500.0,0.00030136,2]
[327458870,1716079891100,-500.0,0.00030136,2]
[327458871,1716079891110,-500.0,0.00030136,2]
[327458872,1716079891119,-634.34642078,0.00030136,2]
[327458873,1716079891128,-500.0,0.00030136,2]
[327458874,1716079891137,-694.12,0.00030136,2]
[327458875,1716079891147,-500.0,0.00030136,2]
[327458876,1716079891156,-10223.15776634,0.00030136,14]
[327458877,1716079891165,-500.0,0.00030136,2]
[327458878,1716079891174,-500.0,0.00030136,2]
[327458879,1716079891183,-500.0,0.00030136,2]
[327458880,1716079891192,-566.02,0.00030136,2]
[327458881,1716079891202,-500.0,0.00030136,2]
[327458882,1716079891211,-500.0,0.00030136,2]
[327458883,1716079891220,-500.0,0.00030136,2]
[327458884,1716079891231,-608.41,0.00030136,2]
[327458885,1716079891240,-500.0,0.00030136,2]
[327458886,1716079891249,-1131.97,0.00030136,2]
[327458887,1716079891258,-500.0,0.00030136,2]
[327458888,1716079891267,-579.57,0.00030136,2]
[327458889,1716079891278,-500.0,0.00030136,2]
[327458890,1716079891287,-500.0,0.00030136,2]
[327458891,1716079891296,-460.01879693,0.00030136,2]
[327458892,1716079891306,-500.0,0.00030136,2]
[327458893,1716079891315,-500.09,0.00030136,2]
[327458894,1716079891324,-500.0,0.00030136,2]
[327458895,1716079891333,-873.62,0.00030136,2]
[327458896,1716079891343,-176.55,0.00030136,2]
[327458897,1716079891353,-500.0,0.00030136,2]
[327458898,1716079891362,-500.0,0.00030136,2]
[327458899,1716079891371,-500.0,0.00030136,2]
[327458900,1716079891380,-500.0,0.00030136,2]
[327458901,1716079891390,-500.0,0.00030136,2]
[327458902,1716079891399,-648.09,0.00030136,2]
[327458903,1716079891409,-523.3,0.00030136,2]
[327458904,1716079891418,-500.0,0.00030136,2]
[327458905,1716079891428,-500.0,0.00030136,2]
[327458906,1716079891437,-801.03,0.00030136,2]
[327458907,1716079891446,-558.63,0.00030136,2]
[327458908,1716079891456,-799.77,0.00030136,2]
[327458909,1716079891465,-591.98,0.00030136,2]
[327458910,1716079891476,-892.31,0.00030136,2]
[327458911,1716079891486,-464.916911,0.00030136,7]
[327458912,1716079891495,-500.0,0.00030136,2]
[327458913,1716079891505,-464.916911,0.00030136,7]
[327458914,1716079891515,-655.12,0.00030136,2]
[327458915,1716079891526,-616.57,0.00030136,2]
[327458916,1716079891536,-517.62,0.00030136,2]
[327458917,1716079891545,-500.0,0.00030136,2]
[327458918,1716079891555,-500.0,0.00030136,2]
[327458919,1716079891565,-500.0,0.00030136,2]
[327458920,1716079891575,-602.52,0.00030136,2]
[327458921,1716079891585,-1082.875413,0.00030136,7]
[327458922,1716079891594,-500.0,0.00030136,2]
[327458923,1716079891604,-500.0,0.00030136,2]
[327458924,1716079891614,-840.77,0.00030136,2]
[327458925,1716079891624,-1082.875413,0.00030136,7]
[327458926,1716079891633,-500.0,0.00030136,2]
[327458927,1716079891643,-608.64,0.00030136,2]
[327458928,1716079891652,-536.02,0.00030136,2]
[327458929,1716079891664,-1106.38,0.00030136,2]
[327458930,1716079891673,-500.0,0.00030136,2]
[327458931,1716079891683,-500.0,0.00030136,2]
[327458932,1716079891692,-500.0,0.00030136,2]
[327458933,1716079891701,-500.0,0.00030136,2]
[327458934,1716079891710,-957.21,0.00030136,2]
[327458935,1716079891721,-1257.0,0.00030136,2]
[327458936,1716079891730,-500.0,0.00030136,2]
[327458937,1716079891740,-1352.16,0.00030136,2]
[327458938,1716079891749,-500.0,0.00030136,2]
[327458939,1716079891759,-684.6,0.00030136,2]
[327458940,1716079891769,-1072.66,0.00030136,2]
[327458941,1716079891778,-849.73,0.00030136,2]
[327458942,1716079891788,-500.0,0.00030136,2]
[327458943,1716079891797,-874.66,0.00030136,2]
[327458944,1716079891807,-585.08,0.00030136,2]
[327458945,1716079891817,-151.0,0.00030136,7]
[327458946,1716079891828,-1990.29,0.00030136,2]
[327458947,1716079891837,-545.44,0.00030136,2]
[327458948,1716079891848,-1243.99,0.00030136,2]
[327458949,1716079891862,-500.0,0.00030136,2]
[327458950,1716079891871,-750.45,0.00030136,2]
[327458951,1716079891880,-748.72,0.00030136,2]
[327458952,1716079891890,-1292.43,0.00030136,2]
[327458953,1716079891899,-151.0,0.00030136,7]
[327458954,1716079891909,-381.49257109,0.00030136,2]
[327458955,1716079891918,-846.9,0.00030136,2]
[327458956,1716079891928,-1250.19,0.00030136,2]
[327458957,1716079891938,-1463.37,0.00030136,2]
[327458958,1716079891948,-500.0,0.00030136,2]
[327458959,1716079891958,-194.888745,0.00030136,7]
[327458960,1716079891968,-530.63,0.00030136,2]
[327458961,1716079891977,-500.0,0.00030136,2]
[327458962,1716079891988,-843.77,0.00030136,2]
[327458963,1716079891998,-1072.07,0.00030136,2]
[327458964,1716079892007,-500.0,0.00030136,2]
[327458965,1716079892016,-896.67,0.00030136,2]
[327458966,1716079892026,-500.0,0.00030136,2]
[327458967,1716079892038,-733.96,0.00030136,2]
[327458968,1716079892047,-1493.69,0.00030136,2]
[327458969,1716079892060,-996.4,0.00030136,2]
[327458970,1716079892070,-500.0,0.00030136,2]
[327458971,1716079892079,-500.0,0.00030136,2]
[327458972,1716079892088,-535.19529082,0.00030136,2]
[327458973,1716079892097,-1067.83,0.00030136,2]
[327458974,1716079892107,-717.91,0.00030136,2]
[327458975,1716079892115,-671.98,0.00030136,2]
[327458976,1716079892124,-414.26,0.00030136,2]
[327458977,1716079892134,-500.0,0.00030136,2]
[327458978,1716079892143,-637.51,0.00030136,2]
[327458979,1716079892153,-709.05,0.00030136,2]
[327458980,1716079892162,-1264.55,0.00030136,2]
[327458981,1716079892171,-500.0,0.00030136,2]
[327458982,1716079892180,-753.77,0.00030136,2]
[327458983,1716079892189,-500.0,0.00030136,2]
[327458984,1716079892199,-1101.63,0.00030136,2]
[327458985,1716079892208,-325.95,0.00030136,2]
[327458986,1716079892217,-1105.23,0.00030136,2]
[327458987,1716079892226,-516.07,0.00030136,2]
[327458988,1716079892235,-500.0,0.00030136,2]
[327458989,1716079892244,-1016.72,0.00030136,2]
[327458990,1716079892254,-500.0,0.00030136,2]
[327458991,1716079892263,-1552.71,0.00030136,2]
[327458992,1716079892272,-1614.27,0.00030136,2]
[327458993,1716079892284,-151.0,0.00030136,7]
[327458994,1716079892293,-822.34,0.00030136,2]
[327458995,1716079892302,-745.19,0.00030136,2]
[327458996,1716079892311,-500.0,0.00030136,2]
[327458997,1716079892320,-861.8,0.00030136,2]
[327458998,1716079892329,-500.0,0.00030136,2]
[327458999,1716079892339,-500.0,0.00030136,2]
[327459000,1716079892349,-867.38,0.00030136,2]
[327459001,1716079892359,-790.2,0.00030136,2]
[327459002,1716079892369,-908.09,0.00030136,2]
[327459003,1716079892378,-500.0,0.00030136,2]
[327459004,1716079892387,-2847.34,0.00030136,2]
[327459005,1716079892396,-500.0,0.00030136,2]
[327459006,1716079892406,-500.0,0.00030136,2]
[327459007,1716079892415,-231.081675,0.00030136,7]
[327459008,1716079892425,-231.081675,0.00030136,7]
[327459009,1716079892434,-500.0,0.00030136,2]
[327459010,1716079892444,-879.34,0.00030136,2]
[327459011,1716079892453,-500.0,0.00030136,2]
[327459012,1716079892463,-1800.44,0.00030136,2]
[327459013,1716079892472,-751.88,0.00030136,2]
[327459014,1716079892482,-306.81914435,0.00030136,2]
[327459015,1716079892491,-690.03,0.00030136,2]
[327459016,1716079892500,-1239.57,0.00030136,2]
[327459017,1716079892509,-311.691066,0.00030136,7]
[327459018,1716079892519,-311.691066,0.00030136,7]
[327459019,1716079892528,-209.044597,0.00030136,7]
[327459020,1716079892540,-694.45,0.00030136,2]
[327459021,1716079892550,-209.044597,0.00030136,7]
[327459022,1716079892559,-2119.09,0.00030136,2]
[327459023,1716079892568,-500.0,0.00030136,2]
[327459024,1716079892577,-163.88418229,0.00030136,2]
[327459025,1716079892644,-500.0,0.00030136,2]
[327459026,1716079892655,-2258.52,0.00030136,2]
[327459027,1716079892664,-582.13,0.00030136,2]
[327459028,1716079892674,-663.78,0.00030136,2]
[327459029,1716079892683,-592.94,0.00030136,2]
[327459030,1716079892692,-663.37,0.00030136,2]
[327459031,1716079892701,-596.02,0.00030136,2]
[327459032,1716079892711,-2187.67,0.00030136,2]
[327459033,1716079892720,-500.0,0.00030136,2]
[327459034,1716079892730,-500.0,0.00030136,2]
[327459035,1716079892739,-897.21,0.00030136,2]
[327459036,1716079892748,-500.0,0.00030136,2]
[327459037,1716079892758,-1986.87,0.00030136,2]